fUST/lending_fUST_20250925
["ID","MTS","AMOUNT","RATE_DAILY","PERIOD"]
[387505045,1758747045790,-523.25912314,0.00019452,2]
[387505047,1758747045801,-480.0,0.00019452,2]
[387505049,1758747045812,-480.0,0.00019452,2]
[387505051,1758747045821,-480.0,0.00019452,2]
[387505053,1758747045831,-480.0,0.00019452,2]
[387505055,1758747045840,-480.0,0.00019452,2]
[387505057,1758747045850,-543.17,0.00019452,2]
[387505059,1758747045860,-293.04,0.00019452,2]
[387505061,1758747045870,-712.37,0.00019452,2]
[387505063,1758747045879,-362.39,0.00019452,2]
[387505065,1758747045889,-562.63,0.00019452,2]
[387505067,1758747045898,-480.0,0.00019452,2]
[387505077,1758747045982,-480.0,0.00019452,2]
[387505080,1758747045992,-480.0,0.00019452,2]
[387505082,1758747046001,-610.19,0.00019452,2]
[387505084,1758747046011,-480.0,0.00019452,2]
[387505087,1758747046021,-480.0,0.00019452,2]
[387505088,1758747046031,-531.68032778,0.00019452,2]
[387505091,1758747046040,-449.85,0.00019452,2]
[387505092,1758747046051,-692.37,0.00019452,2]
[387505094,1758747046062,-480.0,0.00019452,2]
[387505097,1758747046072,-312.62,0.00019452,2]
[387505099,1758747046082,-480.0,0.00019452,2]
[387505101,1758747046092,-480.0,0.00019452,2]
[387505103,1758747046102,-480.0,0.00019452,2]
[387505105,1758747046112,-480.0,0.00019452,2]
[387505107,1758747046121,-480.0,0.00019452,2]
[387505109,1758747046130,-480.0,0.00019452,2]
[387505111,1758747046139,-530.23,0.00019452,2]
[387505113,1758747046149,-480.0,0.00019452,2]
[387505115,1758747046159,-480.0,0.00019452,2]
[387505117,1758747046168,-401.347651,0.00019452,2]
[387505119,1758747046178,-162.85,0.00019452,2]
[387505121,1758747046187,-354.73621607,0.00019452,2]
[387505123,1758747046196,-1028.64,0.00019452,2]
[387505125,1758747046205,-480.0,0.00019452,2]
[387505127,1758747046215,-626.69,0.00019452,2]
[387505129,1758747046224,-480.0,0.00019452,2]
[387505131,1758747046234,-480.0,0.00019452,2]
[387505133,1758747046243,-217.12332187,0.00019452,2]
[387505135,1758747046253,-774.76,0.00019452,2]
[387505137,1758747046262,-480.0,0.00019452,2]
[387505139,1758747046271,-480.0,0.00019452,2]
[387505141,1758747046281,-480.0,0.00019452,2]
[387505143,1758747046290,-550.13,0.00019452,2]
[387505145,1758747046299,-480.0,0.00019452,2]
[387505147,1758747046310,-480.0,0.00019452,2]
[387505149,1758747046319,-448.45846262,0.00019452,2]
[387505151,1758747046329,-480.0,0.00019452,2]
[387505153,1758747046338,-480.0,0.00019452,2]
[387505155,1758747046347,-246.79,0.00019452,2]
[387505157,1758747046357,-480.0,0.00019452,2]
[387505159,1758747046367,-480.0,0.00019452,2]
[387505161,1758747046377,-900.62,0.00019452,2]
[387505163,1758747046387,-180.08,0.00019452,2]
[387505166,1758747046396,-480.0,0.00019452,2]
[387505168,1758747046406,-480.0,0.00019452,2]
[387505169,1758747046415,-480.0,0.00019452,2]
[387505171,1758747046424,-328.96,0.00019452,2]
[387505174,1758747046435,-488.9948695,0.00019452,2]
[387505175,1758747046447,-480.0,0.00019452,2]
[387505178,1758747046457,-480.0,0.00019452,2]
[387505180,1758747046467,-480.0,0.00019452,2]
[387505182,1758747046477,-480.0,0.00019452,2]
[387505184,1758747046487,-480.0,0.00019452,2]
[387505185,1758747046496,-480.0,0.00019452,2]
[387505188,1758747046505,-529.47821025,0.00019452,2]
[387505190,1758747046515,-480.0,0.00019452,2]
[387505191,1758747046526,-480.0,0.00019452,2]
[387505193,1758747046535,-377.72,0.00019452,2]
[387505195,1758747046544,-480.0,0.00019452,2]
[387505197,1758747046554,-480.0,0.00019452,2]
[387505199,1758747046563,-480.0,0.00019452,2]
[387505202,1758747046572,-480.0,0.00019452,2]
[387505204,1758747046582,-230.74040021,0.00019452,2]
[387505206,1758747046591,-480.0,0.00019452,2]
[387505208,1758747046601,-480.0,0.00019452,2]
[387505210,1758747046610,-480.0,0.00019452,2]
[387505212,1758747046619,-480.0,0.00019452,2]
[387505213,1758747046629,-1043.37,0.00019452,2]
[387505216,1758747046638,-480.0,0.00019452,2]
[387505218,1758747046648,-480.0,0.00019452,2]
[387505220,1758747046657,-526.06212658,0.00019452,2]
[387505221,1758747046666,-240.34,0.00019452,2]
[387505223,1758747046675,-480.31,0.00019452,2]
[387505225,1758747046684,-528.87,0.00019452,2]
[387505227,1758747046693,-480.0,0.00019452,2]
[387505229,1758747046702,-480.0,0.00019452,2]
[387505232,1758747046712,-605.49,0.00019452,2]
[387505234,1758747046721,-480.0,0.00019452,2]
[387505235,1758747046730,-2070.13,0.00019452,2]
[387505238,1758747046739,-688.05,0.00019452,2]
[387505239,1758747046748,-480.0,0.00019452,2]
[387505241,1758747046758,-528.17,0.00019452,2]
[387505243,1758747046768,-480.0,0.00019452,2]
[387505245,1758747046777,-480.0,0.00019452,2]
[387505247,1758747046787,-612.85,0.00019452,2]
[387505250,1758747046796,-861.47,0.00019452,2]
[387505251,1758747046807,-480.0,0.00019452,2]
[387505253,1758747046817,-465.0,0.00019452,2]
[387505255,1758747046827,-480.0,0.00019452,2]
[387505258,1758747046837,-480.0,0.00019452,2]
[387505259,1758747046847,-480.0,0.00019452,2]
[387505261,1758747046856,-480.0,0.00019452,2]
[387505264,1758747046865,-480.0,0.00019452,2]
[387505266,1758747046875,-480.0,0.00019452,2]
[387505267,1758747046884,-480.0,0.00019452,2]
[387505270,1758747046894,-480.0,0.00019452,2]
[387505272,1758747046903,-480.0,0.00019452,2]
[387505273,1758747046913,-480.0,0.00019452,2]
[387505275,1758747046922,-413.00618529,0.00019452,2]
[387505278,1758747046931,-500.0,0.00019473,2]
[387505280,1758747046941,-501.26796039,0.00019473,2]
[387505282,1758747046950,-500.0,0.00019473,2]
[387505284,1758747046959,-500.0,0.00019473,2]
[387505286,1758747046968,-500.0,0.00019473,2]
[387505288,1758747046977,-500.0,0.00019473,2]
[387505290,1758747046986,-503.15772695,0.00019473,2]
[387505292,1758747046995,-268.76506992,0.00019473,2]
[387505293,1758747047005,-5069.96243982,0.00019626,2]
[387505295,1758747047014,-711.54119798,0.00019657,2]
[387505297,1758747047023,-285.29534998,0.00019726,2]
[387505300,1758747047032,-480.0,0.00019726,2]
[387505302,1758747047042,-480.0,0.00019726,2]
[387505304,1758747047052,-476.76,0.00019726,2]
[387505306,1758747047061,-480.0,0.00019726,2]
[387505308,1758747047070,-488.75272952,0.00019726,2]
[387505310,1758747047079,-626.45,0.00019726,2]
[387505311,1758747047089,-480.0,0.00019726,2]
[387505313,1758747047098,-480.0,0.00019726,2]
[387505315,1758747047107,-480.0,0.00019726,2]
[387505317,1758747047116,-480.0,0.00019726,2]
[387505319,1758747047125,-171.67189632,0.00019726,2]
[387505321,1758747047135,-215.3706065,0.00019726,2]
[387505323,1758747047144,-480.0,0.00019726,2]
[387505326,1758747047153,-480.0,0.00019726,2]
[387505327,1758747047162,-480.0,0.00019726,2]
[387505329,1758747047171,-480.0,0.00019726,2]
[387505331,1758747047180,-480.0,0.00019726,2]
[387505334,1758747047190,-480.0,0.00019726,2]
[387505336,1758747047199,-274.95,0.00019726,2]
[387505337,1758747047209,-480.0,0.00019726,2]
[387505339,1758747047221,-480.0,0.00019726,2]
[387505342,1758747047230,-480.0,0.00019726,2]
[387505343,1758747047240,-433.41537409,0.00019726,2]
[387505346,1758747047250,-376.6,0.00019726,2]
[387505348,1758747047259,-480.0,0.00019726,2]
[387505350,1758747047268,-277.38,0.00019726,2]
[387505352,1758747047277,-480.0,0.00019726,2]
[387505354,1758747047287,-241.13,0.00019726,2]
[387505355,1758747047296,-480.0,0.00019726,2]
[387505358,1758747047305,-480.0,0.00019726,2]
[387505360,1758747047314,-480.0,0.00019726,2]
[387505361,1758747047323,-480.0,0.00019726,2]
[387505363,1758747047332,-480.0,0.00019726,2]
[387505365,1758747047342,-480.0,0.00019726,2]
[387505368,1758747047351,-480.0,0.00019726,2]
[387505370,1758747047360,-480.0,0.00019726,2]
[387505372,1758747047369,-480.0,0.00019726,2]
[387505373,1758747047379,-480.0,0.00019726,2]
[387505375,1758747047388,-480.0,0.00019726,2]
[387505378,1758747047397,-480.0,0.00019726,2]
[387505380,1758747047407,-480.0,0.00019726,2]
[387505381,1758747047417,-480.0,0.00019726,2]
[387505383,1758747047427,-480.0,0.00019726,2]
[387505385,1758747047438,-480.0,0.00019726,2]
[387505388,1758747047452,-480.0,0.00019726,2]
[387505389,1758747047462,-402.80564083,0.00019726,2]
[387505391,1758747047471,-480.0,0.00019726,2]
[387505394,1758747047481,-480.0,0.00019726,2]
[387505396,1758747047490,-480.0,0.00019726,2]
[387505398,1758747047499,-480.0,0.00019726,2]
[387505400,1758747047509,-480.0,0.00019726,2]
[387505402,1758747047518,-480.0,0.00019726,2]
[387505403,1758747047527,-480.0,0.00019726,2]
[387505406,1758747047536,-623.8,0.00019726,2]
[387505408,1758747047545,-397.31,0.00019726,2]
[387505410,1758747047554,-480.0,0.00019726,2]
[387505412,1758747047563,-375.21,0.00019726,2]
[387505414,1758747047573,-480.0,0.00019726,2]
[387505423,1758747047646,-480.0,0.00019726,2]
[387505426,1758747047664,-247.83,0.00019726,2]
[387505428,1758747047673,-236.16,0.00019726,2]
[387505430,1758747047683,-480.0,0.00019726,2]
[387505432,1758747047692,-480.0,0.00019726,2]
[387505434,1758747047701,-258.56596085,0.00019726,2]
[387505436,1758747047711,-480.0,0.00019726,2]
[387505438,1758747047720,-480.0,0.00019726,2]
[387505440,1758747047730,-480.0,0.00019726,2]
[387505442,1758747047739,-374.51784135,0.00019726,2]
[387505444,1758747047748,-480.0,0.00019726,2]
[387505446,1758747047757,-480.0,0.00019726,2]
[387505448,1758747047767,-480.0,0.00019726,2]
[387505450,1758747047776,-480.0,0.00019726,2]
[387505452,1758747047786,-480.0,0.00019726,2]
[387505454,1758747047795,-337.22,0.00019726,2]
[387505456,1758747047805,-618.88,0.00019726,2]
[387505458,1758747047816,-480.0,0.00019726,2]
[387505460,1758747047825,-266.3646242,0.00019726,2]
[387505462,1758747047834,-480.0,0.00019726,2]
[387505464,1758747047843,-1157.98,0.00019726,2]
[387505466,1758747047853,-693.66,0.00019726,2]
[387505468,1758747047863,-480.0,0.00019726,2]
[387505470,1758747047872,-692.67,0.00019726,2]
[387505472,1758747047882,-480.0,0.00019726,2]
[387505474,1758747047891,-480.0,0.00019726,2]
[387505476,1758747047901,-480.0,0.00019726,2]
[387505479,1758747047911,-480.0,0.00019726,2]
[387505481,1758747047920,-231.61,0.00019726,2]
[387505483,1758747047929,-583.87,0.00019726,2]
[387505485,1758747047938,-480.0,0.00019726,2]
[387505487,1758747047948,-794.41,0.00019726,2]
[387505489,1758747047957,-480.0,0.00019726,2]
[387505490,1758747047966,-480.0,0.00019726,2]
[387505493,1758747047975,-271.4,0.00019726,2]
[387505495,1758747047985,-480.0,0.00019726,2]
[387505497,1758747047994,-480.0,0.00019726,2]
[387505499,1758747048003,-480.0,0.00019726,2]
[387505501,1758747048012,-395.01,0.00019726,2]
[387505503,1758747048022,-543.17,0.00019726,2]
[387505504,1758747048031,-480.0,0.00019726,2]
[387505507,1758747048041,-712.37,0.00019726,2]
[387505509,1758747048050,-562.63,0.00019726,2]
[387505510,1758747048059,-480.0,0.00019726,2]
[387505512,1758747048068,-480.0,0.00019726,2]
[387505515,1758747048077,-480.0,0.00019726,2]
[387505517,1758747048087,-610.19,0.00019726,2]
[387505519,1758747048096,-480.0,0.00019726,2]
[387505520,1758747048105,-480.0,0.00019726,2]
[387505523,1758747048115,-692.37,0.00019726,2]
[387505524,1758747048125,-548.95,0.00019726,2]
[387505526,1758747048134,-480.0,0.00019726,2]
[387505528,1758747048144,-480.0,0.00019726,2]
[387505530,1758747048153,-480.0,0.00019726,2]
[387505532,1758747048163,-480.0,0.00019726,2]
[387505535,1758747048172,-480.0,0.00019726,2]
[387505537,1758747048182,-480.0,0.00019726,2]
[387505539,1758747048191,-1028.64,0.00019726,2]
[387505540,1758747048200,-480.0,0.00019726,2]
[387505542,1758747048210,-626.69,0.00019726,2]
[387505545,1758747048219,-480.0,0.00019726,2]
[387505547,1758747048229,-480.0,0.00019726,2]
[387505549,1758747048238,-774.76,0.00019726,2]
[387505550,1758747048248,-480.0,0.00019726,2]
[387505553,1758747048257,-480.0,0.00019726,2]
[387505555,1758747048267,-480.0,0.00019726,2]
[387505557,1758747048276,-266.95,0.00019726,2]
[387505559,1758747048286,-480.0,0.00019726,2]
[387505560,1758747048295,-480.0,0.00019726,2]
[387505563,1758747048305,-480.0,0.00019726,2]
[387505565,1758747048314,-480.0,0.00019726,2]
[387505567,1758747048323,-480.0,0.00019726,2]
[387505569,1758747048333,-900.62,0.00019726,2]
[387505571,1758747048342,-480.0,0.00019726,2]
[387505572,1758747048354,-480.0,0.00019726,2]
[387505575,1758747048363,-480.0,0.00019726,2]
[387505577,1758747048372,-480.0,0.00019726,2]
[387505578,1758747048382,-480.0,0.00019726,2]
[387505580,1758747048391,-480.0,0.00019726,2]
[387505583,1758747048400,-480.0,0.00019726,2]
[387505584,1758747048409,-480.0,0.00019726,2]
[387505587,1758747048419,-480.0,0.00019726,2]
[387505589,1758747048428,-480.0,0.00019726,2]
[387505591,1758747048437,-480.0,0.00019726,2]
[387505592,1758747048453,-480.0,0.00019726,2]
[387505594,1758747048462,-498.34,0.00019726,2]
[387505597,1758747048472,-480.0,0.00019726,2]
[387505599,1758747048481,-1043.37,0.00019726,2]
[387505600,1758747048489,-480.0,0.00019726,2]
[387505603,1758747048501,-480.0,0.00019726,2]
[387505605,1758747048511,-480.0,0.00019726,2]
[387505607,1758747048521,-314.99276552,0.00019726,2]
[387505608,1758747048530,-2070.13,0.00019726,2]
[387505611,1758747048540,-688.05,0.00019726,2]
[387505613,1758747048549,-480.0,0.00019726,2]
[387505615,1758747048558,-485.52348624,0.00019726,2]
[387505617,1758747048567,-440.34,0.00019726,2]
[387505619,1758747048576,-861.47,0.00019726,2]
[387505620,1758747048586,-480.0,0.00019726,2]
[387505623,1758747048596,-480.0,0.00019726,2]
[387505624,1758747048605,-480.0,0.00019726,2]
[387505627,1758747048614,-480.0,0.00019726,2]
[387505628,1758747048624,-480.0,0.00019726,2]
[387505631,1758747048633,-629.9,0.00019726,2]
[387505632,1758747048643,-480.0,0.00019726,2]
[387505634,1758747048652,-480.0,0.00019726,2]
[387505636,1758747048662,-500.0,0.00019773,2]
[387505638,1758747048671,-500.0,0.00019773,2]
[387505640,1758747048680,-500.0,0.00019773,2]
[387505643,1758747048689,-500.0,0.00019773,2]
[387505644,1758747048699,-500.0,0.00019773,2]
[387505646,1758747048709,-500.0,0.00019773,2]
[387505648,1758747048718,-500.0,0.00019773,2]
[387505651,1758747048728,-500.0,0.00019773,2]
[387505653,1758747048737,-500.0,0.00019773,2]
[387505654,1758747048746,-500.0,0.00019773,2]
[387505657,1758747048755,-500.0,0.00019773,2]
[387505659,1758747048765,-500.0,0.00019773,2]
[387505660,1758747048774,-500.0,0.00019773,2]
[387505663,1758747048784,-5069.96243982,0.00019899,2]
[387505665,1758747048793,-505.68458982,0.00019921,2]
[387505667,1758747048803,-500.0,0.00019921,2]
[387505669,1758747048814,-1006.70609278,0.00019921,2]
[387505671,1758747048823,-500.0,0.00019973,2]
[387505672,1758747048832,-500.0,0.00019973,2]
[387505674,1758747048843,-501.93914469,0.00019973,2]
[387505676,1758747048852,-500.0,0.00019973,2]
[387505678,1758747048862,-500.0,0.00019973,2]
[387505680,1758747048871,-500.0,0.00019973,2]
[387505682,1758747048881,-501.16702121,0.00019973,2]
[387505684,1758747048890,-648.6393408,0.00019973,2]
[387505686,1758747048900,-174.83195121,0.00019973,2]
[387505688,1758747048910,-501.27066792,0.00019973,2]
[387505690,1758747048919,-208.76171828,0.00019973,2]
[387505692,1758747048929,-501.0079376,0.00019973,2]
[387505695,1758747048939,-500.0,0.00019973,2]
[387505697,1758747048950,-500.0,0.00019973,2]
[387505699,1758747048960,-500.27819127,0.00019973,2]
[387505700,1758747048970,-500.0,0.00019973,2]
[387505702,1758747048979,-501.84197014,0.00019973,2]
[387505704,1758747048989,-501.6018424,0.00019973,2]
[387505706,1758747048998,-552.7,0.0002,2]
[387505708,1758747049008,-423.9967478,0.0002,2]
[387505710,1758747049018,-421.41209841,0.0002,2]
[387505712,1758747049027,-480.0,0.0002,2]
[387505714,1758747049037,-480.0,0.0002,2]
[387505716,1758747049047,-480.0,0.0002,2]
[387505718,1758747049057,-169.4,0.0002,2]
[387505720,1758747049066,-480.0,0.0002,2]
[387505722,1758747049075,-480.0,0.0002,2]
[387505724,1758747049085,-480.0,0.0002,2]
[387505726,1758747049095,-190.28,0.0002,2]
[387505729,1758747049104,-480.0,0.0002,2]
[387505731,1758747049114,-480.0,0.0002,2]
[387505732,1758747049123,-480.0,0.0002,2]
[387505734,1758747049133,-323.92769391,0.0002,2]
[387505739,1758747049213,-480.0,0.0002,2]
[387505740,1758747049223,-480.0,0.0002,2]
[387505741,1758747049233,-480.0,0.0002,2]
[387505742,1758747049242,-480.0,0.0002,2]
[387505743,1758747049252,-480.0,0.0002,2]
[387505744,1758747049262,-297.29849537,0.0002,2]
[387505745,1758747049272,-480.0,0.0002,2]
[387505746,1758747049281,-480.0,0.0002,2]
[387505748,1758747049291,-480.0,0.0002,2]
[387505749,1758747049300,-480.0,0.0002,2]
[387505751,1758747049310,-237.02,0.0002,2]
[387505753,1758747049319,-480.0,0.0002,2]
[387505755,1758747049328,-480.0,0.0002,2]
[387505757,1758747049337,-267.43532276,0.0002,2]
[387505759,1758747049347,-480.0,0.0002,2]
[387505761,1758747049356,-480.0,0.0002,2]
[387505762,1758747049366,-480.0,0.0002,2]
[387505764,1758747049375,-480.0,0.0002,2]
[387505766,1758747049384,-401.15242291,0.0002,2]
[387505768,1758747049394,-480.0,0.0002,2]
[387505770,1758747049404,-160.0,0.0002,3]
[387505772,1758747049414,-480.0,0.0002,2]
[387505774,1758747049423,-480.0,0.0002,2]
[387505776,1758747049433,-480.0,0.0002,2]
[387505778,1758747049444,-480.0,0.0002,2]
[387505780,1758747049455,-480.0,0.0002,2]
[387505782,1758747049465,-580.03585243,0.0002,2]
[387505784,1758747049476,-534.9,0.0002,2]
[387505786,1758747049485,-480.0,0.0002,2]
[387505787,1758747049494,-480.0,0.0002,2]
[387505789,1758747049503,-221.59,0.0002,2]
[387505791,1758747049514,-480.0,0.0002,2]
[387505793,1758747049525,-480.0,0.0002,2]
[387505795,1758747049536,-480.0,0.0002,2]
[387505797,1758747049548,-211.41,0.0002,2]
[387505799,1758747049558,-507.14026634,0.0002,2]
[387505800,1758747049567,-1157.98,0.0002,2]
[387505802,1758747049577,-693.66,0.0002,2]
[387505804,1758747049586,-563.57,0.0002,2]
[387505806,1758747049595,-692.67,0.0002,2]
[387505808,1758747049605,-480.0,0.0002,2]
[387505810,1758747049615,-480.0,0.0002,2]
[387505812,1758747049624,-480.0,0.0002,2]
[387505814,1758747049633,-583.87,0.0002,2]
[387505816,1758747049644,-480.0,0.0002,2]
[387505818,1758747049653,-794.41,0.0002,2]
[387505820,1758747049662,-480.0,0.0002,2]
[387505822,1758747049671,-472.17,0.0002,2]
[387505824,1758747049681,-480.0,0.0002,2]
[387505826,1758747049690,-480.0,0.0002,2]
[387505828,1758747049699,-543.17,0.0002,2]
[387505830,1758747049708,-480.0,0.0002,2]
[387505832,1758747049718,-712.37,0.0002,2]
[387505834,1758747049728,-562.63,0.0002,2]
[387505836,1758747049737,-283.57090134,0.0002,2]
[387505838,1758747049747,-480.0,0.0002,2]
[387505840,1758747049756,-480.0,0.0002,2]
[387505842,1758747049765,-610.19,0.0002,2]
[387505844,1758747049774,-480.0,0.0002,2]
[387505846,1758747049784,-692.37,0.0002,2]
[387505848,1758747049794,-535.3,0.0002,2]
[387505850,1758747049804,-480.0,0.0002,2]
[387505852,1758747049813,-343.11865664,0.0002,2]
[387505854,1758747049823,-480.0,0.0002,2]
[387505856,1758747049832,-480.0,0.0002,2]
[387505858,1758747049841,-480.0,0.0002,2]
[387505860,1758747049851,-1028.64,0.0002,2]
[387505862,1758747049859,-480.0,0.0002,2]
[387505863,1758747049868,-626.69,0.0002,2]
[387505865,1758747049877,-480.0,0.0002,2]
[387505867,1758747049887,-480.0,0.0002,2]
[387505869,1758747049896,-774.76,0.0002,2]
[387505871,1758747049905,-480.0,0.0002,2]
[387505873,1758747049914,-480.0,0.0002,2]
[387505875,1758747049924,-480.0,0.0002,2]
[387505877,1758747049933,-395.02,0.0002,2]
[387505879,1758747049942,-480.0,0.0002,2]
[387505881,1758747049952,-480.0,0.0002,2]
[387505883,1758747049963,-480.0,0.0002,2]
[387505885,1758747049973,-480.0,0.0002,2]
[387505887,1758747049983,-900.62,0.0002,2]
[387505889,1758747049992,-557.49,0.0002,2]
[387505891,1758747050001,-480.0,0.0002,2]
[387505893,1758747050011,-480.0,0.0002,2]
[387505895,1758747050022,-480.0,0.0002,2]
[387505897,1758747050031,-480.0,0.0002,2]
[387505899,1758747050040,-480.0,0.0002,2]
[387505901,1758747050049,-480.0,0.0002,2]
[387505903,1758747050058,-480.0,0.0002,2]
[387505905,1758747050067,-480.0,0.0002,2]
[387505907,1758747050077,-480.0,0.0002,2]
[387505909,1758747050086,-480.0,0.0002,2]
[387505911,1758747050095,-480.0,0.0002,2]
[387505913,1758747050104,-480.0,0.0002,2]
[387505915,1758747050113,-1043.37,0.0002,2]
[387505916,1758747050123,-480.0,0.0002,2]
[387505918,1758747050132,-480.0,0.0002,2]
[387505920,1758747050141,-2070.13,0.0002,2]
[387505922,1758747050150,-688.05,0.0002,2]
[387505924,1758747050161,-249.0,0.0002,2]
[387505926,1758747050170,-861.47,0.0002,2]
[387505928,1758747050180,-480.0,0.0002,2]
[387505930,1758747050190,-480.0,0.0002,2]
[387505932,1758747050199,-480.0,0.0002,2]
[387505934,1758747050208,-480.0,0.0002,2]
[387505936,1758747050218,-480.0,0.0002,2]
[387505938,1758747050227,-542.56,0.0002,2]
[387505940,1758747050236,-480.0,0.0002,2]
[387505942,1758747050245,-564.29743427,0.00020021,2]
[387505944,1758747050255,-1002.00681975,0.00020021,2]
[387505946,1758747050264,-1000.0,0.00020021,2]
[387505948,1758747050274,-5069.96243982,0.00020173,2]
[387505950,1758747050284,-500.0,0.00020273,2]
[387505952,1758747050293,-290.77588044,0.00020273,2]
[387505954,1758747050302,-500.0,0.00020273,2]
[387505956,1758747050311,-500.83686526,0.00020273,2]
[387505958,1758747050319,-509.3672855,0.00020273,2]
[387505960,1758747050328,-501.41992364,0.00020273,2]
[387505962,1758747050336,-500.0,0.00020273,2]
[387505964,1758747050345,-500.0,0.00020273,2]
[387505966,1758747050355,-500.0,0.00020273,2]
[387505968,1758747050364,-500.0,0.00020273,2]
[387505970,1758747050372,-500.0,0.00020273,2]
[387505972,1758747050382,-501.01443949,0.00020273,2]
[387505974,1758747050391,-500.0,0.00020273,2]
[387505976,1758747050400,-500.0,0.00020273,2]
[387505978,1758747050408,-500.0,0.00020273,2]
[387505980,1758747050417,-500.0,0.00020273,2]
[387505981,1758747050427,-500.0,0.00020273,2]
[387505983,1758747050437,-500.0,0.00020273,2]
[387505985,1758747050449,-480.0,0.00020273,2]
[387505988,1758747050459,-217.24913114,0.00020273,2]
[387505989,1758747050468,-480.0,0.00020273,2]
[387505991,1758747050477,-480.0,0.00020273,2]
[387505993,1758747050486,-480.0,0.00020273,2]
[387505995,1758747050496,-480.0,0.00020273,2]
[387505997,1758747050505,-480.0,0.00020273,2]
[387505999,1758747050514,-480.0,0.00020273,2]
[387506001,1758747050527,-480.0,0.00020273,2]
[387506003,1758747050538,-480.0,0.00020273,2]
[387506005,1758747050547,-480.0,0.00020273,2]
[387506007,1758747050557,-306.44823262,0.00020273,2]
[387506016,1758747050567,-398.64,0.00020273,2]
[387506018,1758747050638,-480.0,0.00020273,2]
[387506020,1758747050649,-480.0,0.00020273,2]
[387506022,1758747050658,-480.0,0.00020273,2]
[387506024,1758747050667,-480.0,0.00020273,2]
[387506026,1758747050677,-480.0,0.00020273,2]
[387506028,1758747050685,-480.0,0.00020273,2]
[387506030,1758747050695,-480.0,0.00020273,2]
[387506032,1758747050706,-480.0,0.00020273,2]
[387506033,1758747050715,-282.32,0.00020273,2]
[387506035,1758747050725,-480.0,0.00020273,2]
[387506037,1758747050734,-480.0,0.00020273,2]
[387506039,1758747050743,-605.54,0.00020273,2]
[387506041,1758747050752,-378.01674437,0.00020273,2]
[387506043,1758747050761,-480.0,0.00020273,2]
[387506045,1758747050770,-480.0,0.00020273,2]
[387506047,1758747050780,-485.47,0.00020273,2]
[387506049,1758747050788,-480.0,0.00020273,2]
[387506051,1758747050797,-480.0,0.00020273,2]
[387506053,1758747050806,-480.0,0.00020273,2]
[387506055,1758747050815,-480.0,0.00020273,2]
[387506057,1758747050825,-480.0,0.00020273,2]